Cogmind - Beta 14 @@@ ROGUE MODE // 2024.10.31 @ 00:16:39 Player: corey Result: Destroyed by S-10 Pest with Light Assault Rifle Performance ------------- Evolutions (0) 0 Regions Visited (2) 400 Robots Destroyed (12) 60 Value Destroyed (81) 81 Prototype IDs (4) 80 Alien Tech Used (0) 0 Bonus (0) 0 TOTAL SCORE: 621 Bonus ------- None Cogmind --------- Core Integrity 0/250 Matter 290/300 Energy 107/125 System Corruption 0% Temperature Cool (24) Movement Rolling (80) Location -10/Mines Parts ------- > --- POWER (1) -------- Light Ion Engine > --- PROPULSION (2) --- Wheel Wheel > --- UTILITY (2) ------ Small Storage Unit Utility Shielding > --- WEAPON (2) ------- Small Laser Mining Laser > --- INVENTORY (8) ---- Ion Engine Light Ion Engine Light Ion Engine Wheel Wheel Wheel Structural Scanner Light Armor Plating Peak State ------------ > --- POWER ------------ Ion Engine > --- PROPULSION ------- Wheel Compact Wheel > --- UTILITY ---------- Small Storage Unit Utility Shielding > --- WEAPON ----------- EM Pulse Gun Assault Rifle > --- INVENTORY -------- Ion Engine Aluminum Leg Aluminum Leg Small Laser [Rating: 7] Favorites ----------- Power Ion Engine Engine Ion Engine Propulsion Wheel Leg Aluminum Leg Wheel Wheel Utility Small Storage Unit Storage Small Storage Unit Protection Utility Shielding Weapon Small Laser Energy Gun Small Laser Ballistic Gun Assault Rifle Special Weapon Welding Torch Build | -11 -10 -10 ------- Run | Yrd Mat Min Slots Evolved . | . . . Power . | . . . Propulsion . | . . . Utility . | . . . Weapon . | . . . Parts Attached 20 | 7 1 12 Power 2 | 1 . 1 Engine 2 | 1 . 1 Core . | . . . Reactor . | . . . Propulsion 9 | 2 . 7 Treads . | . . . Leg 2 | . . 2 Wheel 7 | 2 . 5 Hover . | . . . Flight . | . . . Utility 2 | 1 1 . Device . | . . . Storage 1 | 1 . . Processor . | . . . Hackware . | . . . Protection 1 | . 1 . Artifact . | . . . Weapon 7 | 3 . 4 Energy Gun 4 | 2 . 2 Energy Cannon . | . . . Ballistic Gun 1 | 1 . . Ballistic Cannon . | . . . Launcher . | . . . Special Weapon 2 | . . 2 Impact Weapon . | . . . Slashing Weapon . | . . . Piercing Weapon . | . . . Special Melee Weapon . | . . . Unidentified Prototypes . | . . . Parts Lost 5 | . . 5 Power . | . . . Propulsion 2 | . . 2 Utility . | . . . Weapon 3 | . . 3 Highest Loss Streak 3 | . . 3 To Critical Strikes . | . . . Average Slot Usage (%) 94 | . 99 92 Engine 14 | . 14 14 Leg 7 | . . 9 Wheel 19 | . 28 17 Storage 14 | . 14 14 Protection 13 | . 13 14 Energy Gun 13 | . 14 13 Ballistic Gun 5 | . 14 3 Special Weapon 3 | . . 4 Peak Build Rating 7 | 6 7 7 Average Rating 6 | 4 6 6 On Entrance 4 | . 6 7 Naked Turns . | . . . Heaviest Build 15 | 14 15 15 Greatest Support 26 | 26 26 26 Greatest Overweight (x) 4 | . . 4 Average Overweight (x) . | . . . Largest Inventory Capacity 8 | 8 8 8 Average Capacity 7 | 7 8 8 Most Carried 8 | 4 6 8 Average Carried 6 | 1 4 6 Final Capacity 8 | 8 8 8 Final Carried 8 | 4 6 8 Class Distribution -------------------- 72% | Mutant 27% | Scavenger-Mutant Dominant Class ---------------- Mutant | -10/Materials Mutant | -10/Mines Resources | -11 -10 -10 ----------- Run | Yrd Mat Min Matter Collected 449 | 260 16 173 Remotely . | . . . Salvage Created 341 | . 20 321 Parts 24 | . . 24 Haulers Intercepted . | . . . Recyclers Shooed 1 | . . 1 Parts Field Recycled . | . . . Retrieved Matter . | . . . Parts Self-Destructed . | . . . Prevented . | . . . Kills | -11 -10 -10 ------- Run | Yrd Mat Min Combat Hostiles Destroyed 9 | . . 9 Guns 9 | . . 9 Classes Destroyed 7 | . 1 6 Worker 2 | . . 2 Builder 4 | . . 4 Tunneler 1 | . . 1 Recycler 1 | . . 1 Operator 1 | . 1 . Swarmer 3 | . . 3 Assembled 6 | . . 6 Best Kill Streak 5 | . 1 5 Combat Bots Only 5 | . . 5 Max Kills in Single Turn 1 | . 1 1 Gunslinging . | . . . Exploded . | . . . Melee . | . . . Uniques/NPCs Destroyed . | . . . Combat | -11 -10 -10 -------- Run | Yrd Mat Min Hostile Shots Fired 93 | . 14 79 Missed 25 | . 5 20 Damage Taken 933 | . 93 840 Core 253 | . 22 231 Absorbed by Shields . | . . . Redirected to Shielding 17 | . . 17 Core Remaining (%) 100 | 100 . . Volleys Fired 65 | . 3 62 Largest 2 | . 2 2 Hottest 140 | . 60 140 Shots Fired 100 | . 6 94 Gun 86 | . 6 80 Cannon . | . . . Launcher . | . . . Special 14 | . . 14 Kinetic 26 | . 3 23 Thermal 58 | . . 58 Explosive . | . . . Electromagnetic 16 | . 3 13 Robot Hit Streak 9 | . 3 9 Robot Miss Streak 4 | . 1 4 Penetration Max . | . . . Secondary Targets 4 | . . 4 Max Gunslinging Chain 1 | . . 1 Shots Hit Robots 58 | . 4 54 Core Hits 26 | . 1 25 Critical Kills . | . . . Critical Parts Destroyed . | . . . Critical Strikes . | . . . Melee Attacks . | . . . Impact . | . . . Slashing . | . . . Piercing . | . . . Sneak Attacks . | . . . Combat Hostiles . | . . . Follow-up Attacks . | . . . Damage Inflicted 649 | . 68 581 Guns 625 | . 68 557 Cannons . | . . . Explosions . | . . . Melee . | . . . Ramming 9 | . . 9 Kinetic 142 | . 10 132 Thermal 320 | . . 320 Explosive . | . . . Electromagnetic 178 | . 58 120 Impact . | . . . Slashing . | . . . Piercing . | . . . Highest Corruption . | . . . Average Corruption . | . . . Corruption Purged . | . . . Corruption Blocked . | . . . Overload Shots . | . . . Overflow Damage . | . . . Projectiles . | . . . Explosions . | . . . Melee . | . . . Knockbacks . | . . . Impact . | . . . Kinetic . | . . . Secondary . | . . . Self-Inflicted Damage 4 | . . 4 Shots . | . . . Rammed 1 | . . 1 Targets Rammed 1 | . . 1 Kicked . | . . . Crushed . | . . . Highest Temperature 180 | . . 180 Average Temperature 62 | . . 62 Received Heat Transfer 96 | . 36 60 Siege Activations . | . . . Robots Corrupted . | . . . Combat Hostiles . | . . . Parts Fried 1 | . 1 . Impact Corruptions . | . . . Robots Melted . | . . . Combat Hostiles . | . . . Parts Melted 1 | . . 1 Heat Transferred 825 | . . 825 Parts Sabotaged . | . . . Parts Stolen . | . . . Parts Stripped . | . . . Power Chain Reactions . | . . . Alert | -11 -10 -10 ------- Run | Yrd Mat Min Peak Influence 182 | . 97 182 Initial 37 | . . 37 Average 71 | . 17 90 Maximum Alert Level . | . . . Low Security (%) 100 | 100 100 100 Level 1 . | . . . Level 2 . | . . . Level 3 . | . . . Level 4 . | . . . Level 5 . | . . . High Security . | . . . Max Security . | . . . Squads Dispatched 1 | . 1 . Investigation . | . . . Extermination . | . . . Reinforcement 1 | . 1 . Assault . | . . . Garrison . | . . . Intercept . | . . . Searches Triggered . | . . . Construction Impeded . | . . . Haulers Reinforced . | . . . Active Scanning Responses . | . . . Cargo Convoy Interrupts . | . . . Stealth | -11 -10 -10 --------- Run | Yrd Mat Min Distress Signals 2 | . 2 . Communications Jammed . | . . . Distress Signals . | . . . Times Spotted 31 | . 12 19 Peak Tracking Total 16 | . 10 16 Tactical Retreats 5 | . 1 4 Traps | -11 -10 -10 ------- Run | Yrd Mat Min Traps Triggered . | . . . Indirectly . | . . . Trap Hack Attempts . | . . . Triggered . | . . . Disarmed . | . . . Reprogrammed . | . . . Reused . | . . . Traps Extracted . | . . . Installed . | . . . Triggered . | . . . Machines | -11 -10 -10 ---------- Run | Yrd Mat Min Machines Disabled . | . . . Max in Single Turn . | . . . Machines Repaired . | . . . Machines Dismantled . | . . . Machines Sabotaged . | . . . Overloaded Fab Kills . | . . . Hacking | -11 -10 -10 --------- Run | Yrd Mat Min Machines Accessed 2 | . 2 . Terminals 2 | . 2 . Fabricators . | . . . Repair Stations . | . . . Recycling Units . | . . . Scanalyzers . | . . . Garrison Access . | . . . Total Hacks 2 | . 2 . Successful 2 | . 2 . Failed . | . . . Catastrophic . | . . . Database Lockouts . | . . . Manual . | . . . Terminals 2 | . 2 . Fabricators . | . . . Repair Stations . | . . . Recycling Units . | . . . Scanalyzers . | . . . Garrison Access . | . . . Terminal Hacks 2 | . 2 . Prototype ID Bank 2 | . 2 . Fabricator Hacks . | . . . Repair Station Hacks . | . . . Recycling Unit Hacks . | . . . Scanalyzer . | . . . Garrison Access Hacks . | . . . Unauthorized Hacks . | . . . Terminals . | . . . Fabricators . | . . . Repair Stations . | . . . Recycling Units . | . . . Scanalyzers . | . . . Garrison Access . | . . . Data Cores Recovered 1 | . 1 . Used 1 | . 1 . Hacking Detections 1 | . 1 . Full Trace Events . | . . . Feedback Events . | . . . Feedback Blocked . | . . . Robot Schematics Acquired . | . . . Robots Built . | . . . Authchips . | . . . Time . | . . . Total Robot Build Rating . | . . . Part Schematics Acquired . | . . . Parts Built . | . . . Authchips . | . . . Time . | . . . Total Part Build Rating . | . . . Parts Repaired . | . . . Time . | . . . Parts Recycled . | . . . Recycled Matter . | . . . Retrieved Matter . | . . . Retrieved Components . | . . . Parts Scanalyzed . | . . . Part Schematics Acquired . | . . . Parts Damaged . | . . . Bothacking | -11 -10 -10 ------------ Run | Yrd Mat Min Used RIF Installer . | . . . Robots Hacked . | . . . Non-combat . | . . . Combat . | . . . Robot Hacks Applied . | . . . Relay Couplers Released . | . . . Fabnet Peak Effective % . | . . . Robots Rewired . | . . . Allies Hacked . | . . . Hacks Repelled . | . . . Allies | -11 -10 -10 -------- Run | Yrd Mat Min Total Allies . | . . . Largest Group . | . . . Highest-Rated Group . | . . . Highest-Rated Ally . | . . . Total Orders . | . . . Ally Attacks . | . . . Total Damage . | . . . Kills . | . . . Allies Corrupted . | . . . Allies Melted . | . . . Intel | -11 -10 -10 ------- Run | Yrd Mat Min Robot Analysis Total . | . . . Derelict Logs Recovered 1 | . . 1 Drone Launches . | . . . Drone Recoveries . | . . . Exploration | -11 -10 -10 ------------- Run | Yrd Mat Min Turns Passed 836 | 49 163 624 Spaces Moved 648 | 39 167 442 Core 3 | 2 . 1 Treads . | . . . Legs 139 | . . 139 Wheels 506 | 37 167 302 Hover . | . . . Flight . | . . . Fastest Speed 50 | 50 90 80 Average Speed 93 | 88 90 95 Slowest Speed 250 | 100 90 250 Overloaded Moves . | . . . Propulsion Burnouts . | . . . Robots Hopped . | . . . Cave-ins Triggered . | . . . Exploration Rate (%) 39 | 4 40 73 Regions Visited 2 Branch Regions 1 Pre-discovered Areas . | . . . Known Exits Taken . | . . . Unknown Exits Taken 2 | 1 1 . Scrap Searched 1 | . . 1 Spaces Dug 5 | . . 5 Terrain Destroyed 6 | . . 6 Melee . | . . . Projectile 6 | . . 6 AOE . | . . . Terrain Rammed . | . . . Walls Destroyed . | . . . Machines Disabled . | . . . Actions | -11 -10 -10 --------- Run | Yrd Mat Min Total 762 | 49 173 540 Wait 5 | . 1 4 Move 646 | 38 166 442 Hop . | . . . Pick Up 16 | 4 2 10 Fast Attach 10 | 6 1 3 Attach 4 | . . 4 Detach . | . . . Swap 6 | 1 . 5 Drop 9 | . . 9 Fire 65 | . 3 62 Melee . | . . . Ram 1 | . . 1 Kick . | . . . Crush . | . . . Escape Stasis . | . . . Rewire . | . . . Trap . | . . . Miscellaneous . | . . . Route ------- -11/Scrapyard -10/Materials -10/Mines History --------- Turn | Location | Event 16 | -11/Scrapyard | Discovered new exit (range 16) 50 | -11/Scrapyard | Entered Materials 177 | -10/Materials | Discovered new exit (range 7) 213 | -10/Materials | Entered Mines 289 | -10/Mines | Learned Materials non-interactive machine intel 292 | -10/Mines | Assembled infested the area 317 | -10/Mines | Build established: Mutant 350 | -10/Mines | Core integrity fell below 50% 369 | -10/Mines | Lost 3 parts (2n1w) 401 | -10/Mines | Core integrity fell below 20% 837 | -10/Mines | Destroyed by S-10 Pest with Light Assault Rifle Last Messages --------------- 00619_ Dropped Com. Wheel. 00622_ Acquired 9 matter. 00624_ Acquired Wheel. 00628_ Slammed into T-07 Excavator. 00639_ A derelict is hurriedly installing traps. 00641_ 94-WC8(g): "Hehe, this'll put a wrench in their mining defense operations..." 00641_ 94-WC8(g) slips into the shadows. 00681_ K-01 Serf destroyed. 00685_ Acquired 7 matter. 00685_ K-01 Serf collects debris. 00732_ T-07 Excavator is excavating. 00743_ T-07 Excavator destroyed. 00747_ Dropped Wheel. 00748_ Acquired 10 matter. 00750_ Dropped Aluminum Leg. 00751_ Acquired Wheel. 00752_ Dropped Welding Torch. 00754_ Acquired Mining Laser. 00786_ The unstable cave ceiling collapses. Map ----- +----------------------------------------------------+ | %[ #????????####??????? | | % ####????????## ####??? | | ##???????????# ##?? | | ######??????## #?? | | ## ## ## ######## #?? | | # ###### #?? | | ##????## ## #?# #??? | | #???????## ### #?## ##?? | | #?????????### #?# #??## #?? | | #???????????# #?# #???## #?? | | ????????????# #?# #????# ## ##? | | ????????????# #?# #????# ### #? | | ##??####????# ### ###??# #?# #? | | #?## ##???# #??# ### #? | | ### #???# ##### #### ## ## | | #?### #???# # | | ### ##?# ##??# ####### # | | ??## #??# "#### #?????## ## # | | ??## #??# ##"# # #??????# ## # | | ??# #### ####### #??????# ## # | | ??# |! = #?????# #??????# ## # | | ??## ###%####?????# #??????# ## # | | ???####?#=#????????# #????### ## # | | ????????# #??####### #???## # | | ????????# #??# #?### # | | ????????# #??# ###;@ ##### | | ???????? ??# =ss=s #??? | | ????????###??# =##### #?? | | ?????????????#########???## #?? | | ??????????????????????????## #?? | | ???????????????????????????# #?? | | ???????????????????????????## ##?? | | ????????????????????????????####??? | | ??????????????????????????????????? | | ??????????????????????????????????? | | ??????????????????????????????????? | | ??????????????????????????????????? | | ??????????????????????????????????? | | ??????????????????????????????????? | | ??????????????????????????????????? | | | | | | | | | | | | | | | | | | | | | +----------------------------------------------------+ Best States ------------- Heat Dissipation 25 Energy Generation 10 Energy Capacity 250 Matter Stores 300 Matter Capacity 300 Sight Range 16 Terrain Scan Density 10 Utility Shielding 33 Evasion (%) 55 Item Schematics ----------------- None Robot Schematics ------------------ None Fabricated ------------ Nothing Alien Tech Used ----------------- None Achievements -------------- Dynamic Key Challenges ------------ None Game ------ Seed ExpertColdExoskeleton Manual? 0 Play Time 00:14:54 Cumulative 27.0 hours Start 2024.10.30 @ 21:12:54 End 2024.10.31 @ 00:16:39 Sessions 5 Manual Loads 0 Difficulty Rogue Special Mode None Game No. 34 Rogue 34 Adventurer 0 Explorer 0 Win Type - Total 0 Types 0/0/0/0/0/0/0/0/0 Lore% 10 Gallery% 24 Achievement% 21 Wizard Run 0 Options --------- Layout 1 ASCII 0 Keyboard 0 Movement Numpad Keybinds 0 Fullscreen 1 Font 32/SmallcapsGlow Map View 38x17 Zoom Use 97% Tactical HUD 1 Map Filters NONE Filters NONE Steam 1 RUN: ca8c7c9d-c289-4c09-b684-b1011d585255